[Event "RUS-chT Men Rapid 2019"]
[Site "Sochi"]
[Date "2019.10.19"]
[Round "6.10"]
[White "Goltsev, Dmitry"]
[Black "Yuffa, Daniil"]
[Result "0-1"]
[ECO "A00"]
[WhiteElo "2309"]
[BlackElo "2577"]
[Annotator "ChessBase"]
[PlyCount "134"]
[EventDate "2019.10.18"]
[EventType "swiss"]
[EventCountry "RUS"]
[SourceTitle "playchess.com"]
[Source "ChessBase"]
[SourceQuality "1"]
[TimeControl "900+10"]

1. g3 {[%emt 0:00:00]} Nf6 {[%emt 0:00:26]} 2. Bg2 {[%emt 0:00:00]} d6 {[%emt 0:00:13]} 3. e4 {[%emt 0:00:01]} c5 {[%emt 0:00:07]} 4. Ne2 {[%emt 0:00:08]} g6 {[%emt 0:00:06]} 5. O-O {[%emt 0:00:13]} Bg7 {[%emt 0:00:03]} 6. c3 {[%emt 0:00:15]} O-O {[%emt 0:00:22]} 7. d4 {[%emt 0:00:09]} Nc6 {[%emt 0:00:49]} 8. h3 {[%emt 0:00:52]} e5 {[%emt 0:00:46]} 9. Be3 {[%emt 0:02:39]} b6 {[%emt 0:00:19]} 10. f4 {[%emt 0:01:45]} Ba6 {[%emt 0:02:25]} 11. fxe5 {[%emt 0:00:42]} dxe5 {[%emt 0:00:02]} 12. d5 {[%emt 0:00:10]} Ne7 {[%emt 0:00:38]} 13. b3 {[%emt 0:00:49]} Ne8 {[%emt 0:00:02]} 14. c4 {[%emt 0:00:09]} Nd6 {[%emt 0:00:14]} 15. Nbc3 {[%emt 0:00:24]} f5 {[%emt 0:00:19]} 16. Qd3 {[%emt 0:00:44]} Bc8 {[%emt 0:00:51]} 17. Kh2 {[%emt 0:00:19]} Bd7 {[%emt 0:00:38]} 18. a4 {[%emt 0:01:21]} a5 {[%emt 0:00:40]} 19. Rf2 {[%emt 0:00:27]} Qc7 {[%emt 0:00:21]} 20. Raf1 {[%emt 0:00:30]} Rf7 {[%emt 0:00:14]} 21. Qd2 {[%emt 0:02:00]} Raf8 {[%emt 0:01:12]} 22. Nc1 {[%emt 0:01:36]} Qc8 {[%emt 0:02:11]} 23. h4 {[%emt 0:01:10]} Kh8 {[%emt 0:00:54]} 24. Nd3 {[%emt 0:00:08]} Ng8 {[%emt 0:00:01]} 25. Kg1 {[%emt 0:00:54]} Qe8 {[%emt 0:00:14]} 26. Re2 {[%emt 0:01:04]} Nf6 {[%emt 0:01:00]} 27. Nf2 {[%emt 0:00:28]} Nh5 {[%emt 0:00:19]} 28. Nh1 {[%emt 0:00:22]} f4 {[%emt 0:00:25]} 29. Ref2 {[%emt 0:00:16]} Bh6 {[%emt 0:01:25]} 30. Bxc5 {[%emt 0:00:12]} bxc5 {[%emt 0:00:04]} 31. Nb5 {[%emt 0:00:04]} Nxb5 {[%emt 0:00:28]} 32. axb5 {[%emt 0:00:02]} Kg7 {[%emt 0:00:20]} 33. Qxa5 {[%emt 0:00:21]} fxg3 {[%emt 0:00:16]} 34. Rxf7+ {[%emt 0:00:02]} Rxf7 {[%emt 0:00:01]} 35. Rxf7+ {[%emt 0:00:01]} Qxf7 {[%emt 0:00:01]} 36. Qc3 {[%emt 0:00:03]} Qf6 {[%emt 0:00:30]} 37. Nxg3 {[%emt 0:00:06]} Nf4 {[%emt 0:00:09]} 38. b6 {[%emt 0:00:11]} Qxb6 {[%emt 0:00:22]} 39. Qxe5+ {[%emt 0:00:02]} Kf7 {[%emt 0:00:42]} 40. Qc3 {[%emt 0:00:39]} Qf6 {[%emt 0:00:42]} 41. e5 {[%emt 0:00:03]} Qxh4 {[%emt 0:00:07]} 42. e6+ {[%emt 0:00:04]} Nxe6 {[%emt 0:00:26]} 43. dxe6+ {[%emt 0:00:02]} Bxe6 {[%emt 0:00:01]} 44. Ne4 {[%emt 0:00:11]} Bg7 {[%emt 0:00:13]} 45. Qg3 {[%emt 0:00:26]} Qxg3 {[%emt 0:00:21]} 46. Nxg3 {[%emt 0:00:01]} Bd4+ {[%emt 0:00:04]} 47. Kf1 {[%emt 0:00:04]} Kf6 {[%emt 0:00:04]} 48. Ke2 {[%emt 0:00:04]} Ke5 {[%emt 0:00:20]} 49. Ne4 {[%emt 0:00:15]} h5 {[%emt 0:00:08]} 50. Ng5 {[%emt 0:00:03]} Bg4+ {[%emt 0:00:07]} 51. Kd3 {[%emt 0:00:20]} Kf4 {[%emt 0:00:04]} 52. Ne4 {[%emt 0:00:17]} Bg1 {[%emt 0:00:10]} 53. Nc3 {[%emt 0:00:19]} g5 {[%emt 0:00:10]} 54. b4 {[%emt 0:00:16]} cxb4 {[%emt 0:00:03]} 55. Nd5+ {[%emt 0:00:05]} Kg3 {[%emt 0:00:01]} 56. Be4 {[%emt 0:00:03]} Bc5 {[%emt 0:00:08]} 57. Nf6 {[%emt 0:00:10]} h4 {[%emt 0:00:23]} 58. Nh7 {[%emt 0:00:25]} Kf4 {[%emt 0:00:04]} 59. Nf6 {[%emt 0:00:03]} Bf5 {[%emt 0:00:09]} 60. Nd5+ {[%emt 0:00:09]} Ke5 {[%emt 0:00:02]} 61. Bxf5 {[%emt 0:00:06]} Kxf5 {[%emt 0:00:02]} 62. Ke2 {[%emt 0:00:07]} h3 {[%emt 0:00:06]} 63. Kf3 {[%emt 0:00:02]} g4+ {[%emt 0:00:02]} 64. Kg3 {[%emt 0:00:05]} Bd6+ {[%emt 0:00:05]} 65. Kf2 {[%emt 0:00:01]} g3+ {[%emt 0:00:05]} 66. Kf3 {[%emt 0:00:06]} g2 {[%emt 0:00:03]} 67. Ne3+ {[%emt 0:00:06]} Kg5 {[%emt 0:00:02]} 0-1

[Event "RUS-chT Men Rapid 2019"]
[Site "Sochi"]
[Date "2019.10.19"]
[Round "6.12"]
[White "Kolchin, Maxim"]
[Black "Khismatullin, Denis"]
[Result "0-1"]
[ECO "A46"]
[WhiteElo "2077"]
[BlackElo "2611"]
[Annotator "ChessBase"]
[PlyCount "50"]
[EventDate "2019.10.18"]
[EventType "swiss"]
[EventCountry "RUS"]
[SourceTitle "playchess.com"]
[Source "ChessBase"]
[SourceQuality "1"]
[TimeControl "900+10"]

1. d4 {[%emt 0:00:00]} Nf6 {[%emt 0:00:00]} 2. Nf3 {[%emt 0:00:00]} e6 {[%emt 0:00:00]} 3. Bf4 {[%emt 0:00:00]} Be7 {[%emt 0:00:41]} 4. h3 {[%emt 0:00:08]} b6 {[%emt 0:00:02]} 5. e3 {[%emt 0:00:02]} c5 {[%emt 0:00:02]} 6. Nc3 {[%emt 0:00:17]} cxd4 {[%emt 0:00:20]} 7. Nxd4 {[%emt 0:00:58]} a6 {[%emt 0:02:54]} 8. Qf3 {[%emt 0:00:29]} d5 {[%emt 0:00:02]} 9. O-O-O {[%emt 0:00:04]} Bb7 {[%emt 0:00:15]} 10. Bh2 {[%emt 0:03:22]} Nbd7 {[%emt 0:00:28]} 11. Qg3 {[%emt 0:00:02]} O-O {[%emt 0:00:15]} 12. Be2 {[%emt 0:01:06]} Rc8 {[%emt 0:00:48]} 13. Kb1 {[%emt 0:00:18]} Rxc3 {[%emt 0:00:11]} 14. bxc3 {[%emt 0:00:03]} Ne4 {[%emt 0:00:03]} 15. Qf3 {[%emt 0:00:40]} Ndc5 {[%emt 0:00:47]} 16. Rd3 {[%emt 0:01:52]} Bf6 {[%emt 0:00:53]} 17. Rhd1 {[%emt 0:00:48]} Qe7 {[%emt 0:01:25]} 18. Ka1 {[%emt 0:02:55]} Rc8 {[%emt 0:00:14]} 19. Bf1 {[%emt 0:02:33]} Nxd3 {[%emt 0:00:19]} 20. Bxd3 {[%emt 0:00:34]} Nxc3 {[%emt 0:00:06]} 21. Rb1 {[%emt 0:01:49]} Nxb1 {[%emt 0:01:16]} 22. Kxb1 {[%emt 0:00:01]} g6 {[%emt 0:00:08]} 23. Nb3 {[%emt 0:00:10]} e5 {[%emt 0:00:09]} 24. Qe2 {[%emt 0:00:06]} a5 {[%emt 0:00:13]} 25. Bb5 {[%emt 0:00:02]} Qa3 {[%emt 0:00:52]} 0-1

[Event "RUS-chT Men Rapid 2019"]
[Site "Sochi"]
[Date "2019.10.19"]
[Round "6.13"]
[White "Tsydypov, Zhamsaran"]
[Black "Zakhartsov, Vladimir"]
[Result "1/2-1/2"]
[ECO "C42"]
[WhiteElo "2553"]
[BlackElo "2514"]
[Annotator "ChessBase"]
[PlyCount "81"]
[EventDate "2019.10.18"]
[EventType "swiss"]
[EventCountry "RUS"]
[SourceTitle "playchess.com"]
[Source "ChessBase"]
[SourceQuality "1"]
[TimeControl "900+10"]

1. e4 {[%emt 0:00:00]} e5 {[%emt 0:00:00]} 2. Nf3 {[%emt 0:00:06]} Nf6 {[%emt 0:00:00]} 3. Nxe5 {[%emt 0:00:31]} d6 {[%emt 0:00:03]} 4. Nf3 {[%emt 0:00:05]} Nxe4 {[%emt 0:00:10]} 5. d4 {[%emt 0:00:12]} d5 {[%emt 0:00:18]} 6. Bd3 {[%emt 0:00:07]} Bd6 {[%emt 0:00:05]} 7. O-O {[%emt 0:00:17]} O-O {[%emt 0:00:02]} 8. c4 {[%emt 0:00:33]} c6 {[%emt 0:00:02]} 9. Nc3 {[%emt 0:00:59]} Nxc3 {[%emt 0:02:21]} 10. bxc3 {[%emt 0:00:02]} dxc4 {[%emt 0:00:22]} 11. Bxc4 {[%emt 0:00:04]} Bg4 {[%emt 0:00:10]} 12. Rb1 {[%emt 0:00:22]} Qc7 {[%emt 0:00:25]} 13. h3 {[%emt 0:00:06]} Bh5 {[%emt 0:00:32]} 14. Bd3 {[%emt 0:00:10]} Kh8 {[%emt 0:01:20]} 15. c4 {[%emt 0:00:55]} b6 {[%emt 0:00:44]} 16. Bb2 {[%emt 0:04:44]} Nd7 {[%emt 0:00:10]} 17. Re1 {[%emt 0:00:27]} Rae8 {[%emt 0:00:20]} 18. Rxe8 {[%emt 0:00:17]} Rxe8 {[%emt 0:00:02]} 19. g4 {[%emt 0:00:43]} Bg6 {[%emt 0:00:07]} 20. Nh4 {[%emt 0:00:52]} c5 {[%emt 0:01:21]} 21. Bxg6 {[%emt 0:00:39]} hxg6 {[%emt 0:00:24]} 22. Nf3 {[%emt 0:00:01]} cxd4 {[%emt 0:00:30]} 23. Bxd4 {[%emt 0:00:55]} Bc5 {[%emt 0:00:37]} 24. Bxc5 {[%emt 0:00:25]} Nxc5 {[%emt 0:00:02]} 25. Qd2 {[%emt 0:00:17]} Ne6 {[%emt 0:00:20]} 26. Re1 {[%emt 0:00:16]} Rd8 {[%emt 0:01:29]} 27. Qe2 {[%emt 0:01:02]} Nf4 {[%emt 0:02:42]} 28. Qe7 {[%emt 0:00:14]} Nxh3+ {[%emt 0:00:44]} 29. Kg2 {[%emt 0:00:14]} Nf4+ {[%emt 0:00:08]} 30. Kh2 {[%emt 0:00:02]} Rc8 {[%emt 0:02:02]} 31. Qxc7 {[%emt 0:03:15]} Rxc7 {[%emt 0:00:01]} 32. Re8+ {[%emt 0:00:58]} Kh7 {[%emt 0:00:01]} 33. Kg3 {[%emt 0:00:24]} Ne6 {[%emt 0:01:08]} 34. Ne5 {[%emt 0:00:00]} Ng5 {[%emt 0:00:32]} 35. f4 {[%emt 0:00:12]} Ne4+ {[%emt 0:00:08]} 36. Kg2 {[%emt 0:00:01]} Nd6 {[%emt 0:00:13]} 37. Rd8 {[%emt 0:00:17]} Nb7 {[%emt 0:00:32]} 38. Rf8 {[%emt 0:00:01]} Nd6 {[%emt 0:00:15]} 39. Rd8 {[%emt 0:00:06]} Nb7 {[%emt 0:00:22]} 40. Rf8 {[%emt 0:00:15]} Nd6 {[%emt 0:00:08]} 41. Rd8 {[%emt 0:00:14]} 1/2-1/2

[Event "RUS-chT Men Rapid 2019"]
[Site "Sochi"]
[Date "2019.10.19"]
[Round "6.14"]
[White "Bryakin, Mikhail"]
[Black "Triapishko, Alexandr"]
[Result "1/2-1/2"]
[ECO "E04"]
[WhiteElo "2440"]
[BlackElo "2514"]
[Annotator "ChessBase"]
[PlyCount "37"]
[EventDate "2019.10.18"]
[EventType "swiss"]
[EventCountry "RUS"]
[SourceTitle "playchess.com"]
[Source "ChessBase"]
[SourceQuality "1"]
[TimeControl "900+10"]

1. d4 {[%emt 0:01:43]} Nf6 {[%emt 0:00:00]} 2. c4 {[%emt 0:00:02]} e6 {[%emt 0:00:00]} 3. Nf3 {[%emt 0:00:04]} d5 {[%emt 0:00:03]} 4. g3 {[%emt 0:00:02]} dxc4 {[%emt 0:02:16]} 5. Bg2 {[%emt 0:00:04]} Bb4+ {[%emt 0:00:10]} 6. Bd2 {[%emt 0:00:04]} c5 {[%emt 0:00:04]} 7. a3 {[%emt 0:00:40]} Bxd2+ {[%emt 0:00:21]} 8. Nbxd2 {[%emt 0:00:02]} cxd4 {[%emt 0:00:33]} 9. Nxc4 {[%emt 0:00:08]} Nc6 {[%emt 0:00:34]} 10. O-O {[%emt 0:00:02]} O-O {[%emt 0:00:21]} 11. b4 {[%emt 0:00:02]} d3 {[%emt 0:02:49]} 12. exd3 {[%emt 0:00:19]} Bd7 {[%emt 0:01:34]} 13. Rc1 {[%emt 0:01:25]} Nd5 {[%emt 0:03:12]} 14. Qd2 {[%emt 0:00:47]} Nce7 {[%emt 0:00:47]} 15. Nce5 {[%emt 0:01:03]} Be8 {[%emt 0:01:02]} 16. Nc4 {[%emt 0:01:52]} Rc8 {[%emt 0:00:37]} 17. Rfe1 {[%emt 0:00:11]} b6 {[%emt 0:00:42]} 18. Nfe5 {[%emt 0:00:43]} Rc7 {[%emt 0:00:59]} 19. Ne3 {[%emt 0:00:36]} 1/2-1/2

[Event "RUS-chT Men Rapid 2019"]
[Site "Sochi"]
[Date "2019.10.19"]
[Round "6.15"]
[White "Moiseenko, Vadim"]
[Black "Golubov, Saveliy"]
[Result "0-1"]
[ECO "B09"]
[WhiteElo "2532"]
[BlackElo "2469"]
[Annotator "ChessBase"]
[PlyCount "106"]
[EventDate "2019.10.18"]
[EventType "swiss"]
[EventCountry "RUS"]
[SourceTitle "playchess.com"]
[Source "ChessBase"]
[SourceQuality "1"]
[TimeControl "900+10"]

1. e4 {[%emt 0:02:39]} g6 {[%emt 0:02:39]} 2. d4 {[%emt 0:00:07]} Bg7 {[%emt 0:00:02]} 3. Nc3 {[%emt 0:00:02]} d6 {[%emt 0:00:02]} 4. f4 {[%emt 0:00:05]} Nf6 {[%emt 0:00:02]} 5. Nf3 {[%emt 0:00:01]} O-O {[%emt 0:00:03]} 6. Bd3 {[%emt 0:00:02]} Na6 {[%emt 0:00:02]} 7. O-O {[%emt 0:00:05]} c5 {[%emt 0:00:13]} 8. d5 {[%emt 0:00:01]} Bg4 {[%emt 0:00:11]} 9. h3 {[%emt 0:00:01]} Bxf3 {[%emt 0:00:04]} 10. Rxf3 {[%emt 0:00:01]} Nc7 {[%emt 0:00:56]} 11. a4 {[%emt 0:00:06]} e6 {[%emt 0:01:25]} 12. dxe6 {[%emt 0:00:01]} Nxe6 {[%emt 0:00:02]} 13. Rf1 {[%emt 0:00:24]} Nd4 {[%emt 0:02:23]} 14. Be3 {[%emt 0:00:32]} Re8 {[%emt 0:00:16]} 15. Qd2 {[%emt 0:00:07]} Nh5 {[%emt 0:01:26]} 16. Qf2 {[%emt 0:00:25]} f5 {[%emt 0:01:12]} 17. Rad1 {[%emt 0:00:20]} fxe4 {[%emt 0:02:54]} 18. Nxe4 {[%emt 0:01:31]} Rc8 {[%emt 0:01:54]} 19. c3 {[%emt 0:01:19]} c4 {[%emt 0:00:37]} 20. Bxd4 {[%emt 0:03:03]} cxd3 {[%emt 0:00:04]} 21. Rfe1 {[%emt 0:00:01]} Bxd4 {[%emt 0:01:13]} 22. Qxd4 {[%emt 0:00:03]} d5 {[%emt 0:00:01]} 23. Nf2 {[%emt 0:03:30]} Rxe1+ {[%emt 0:00:12]} 24. Rxe1 {[%emt 0:00:01]} Rc4 {[%emt 0:00:12]} 25. Qxd3 {[%emt 0:00:02]} Nxf4 {[%emt 0:00:27]} 26. Qf3 {[%emt 0:00:01]} Nh5 {[%emt 0:00:31]} 27. Ng4 {[%emt 0:00:48]} Rf4 {[%emt 0:00:09]} 28. Qd3 {[%emt 0:00:14]} Rxa4 {[%emt 0:00:11]} 29. b4 Ra6 30. Kh1 {[%emt 0:03:15]} Nf6 {[%emt 0:00:05]} 31. Qb5 {[%emt 0:00:15]} Nxg4 {[%emt 0:00:21]} 32. Re8+ {[%emt 0:00:20]} Kf7 {[%emt 0:00:06]} 33. Qxa6 {[%emt 0:00:06]} Qxe8 {[%emt 0:00:18]} 34. Qxb7+ {[%emt 0:00:00]} Qe7 {[%emt 0:00:15]} 35. Qxd5+ {[%emt 0:00:06]} Qe6 {[%emt 0:00:03]} 36. Qb7+ {[%emt 0:00:19]} Kg8 {[%emt 0:00:16]} 37. Qa8+ {[%emt 0:00:05]} Kf7 {[%emt 0:00:06]} 38. Qb7+ {[%emt 0:00:49]} Kg8 {[%emt 0:00:12]} 39. Qb8+ {[%emt 0:00:14]} Kf7 {[%emt 0:00:03]} 40. Qxa7+ {[%emt 0:00:10]} Kf6 {[%emt 0:00:07]} 41. Qd4+ {[%emt 0:00:23]} Ne5 {[%emt 0:00:03]} 42. b5 {[%emt 0:00:01]} Qb3 {[%emt 0:00:27]} 43. b6 {[%emt 0:00:05]} Ke6 {[%emt 0:00:13]} 44. Qd8 {[%emt 0:00:23]} Qb2 {[%emt 0:00:10]} 45. Qc8+ {[%emt 0:00:13]} Kd5 {[%emt 0:00:07]} 46. Qd8+ {[%emt 0:00:11]} Ke6 {[%emt 0:00:12]} 47. Qc8+ {[%emt 0:00:09]} Kd5 {[%emt 0:00:09]} 48. c4+ {[%emt 0:00:07]} Ke4 {[%emt 0:00:12]} 49. Qa8+ {[%emt 0:00:13]} Kf5 {[%emt 0:00:10]} 50. Qf8+ {[%emt 0:00:11]} Ke4 {[%emt 0:00:08]} 51. c5 {[%emt 0:00:09]} h5 {[%emt 0:00:02]} 52. Qf1 {[%emt 0:00:10]} Kd5 {[%emt 0:00:07]} 53. Qe1 {[%emt 0:00:11]} Qb5 {[%emt 0:00:15]} 0-1

[Event "RUS-chT Men Rapid 2019"]
[Site "Sochi"]
[Date "2019.10.19"]
[Round "6.16"]
[White "Apryshko, Gleb"]
[Black "Rozum, Ivan"]
[Result "1/2-1/2"]
[ECO "B40"]
[WhiteElo "2382"]
[BlackElo "2599"]
[Annotator "ChessBase"]
[PlyCount "158"]
[EventDate "2019.10.18"]
[EventType "swiss"]
[EventCountry "RUS"]
[SourceTitle "playchess.com"]
[Source "ChessBase"]
[SourceQuality "1"]
[TimeControl "900+10"]

1. e4 {[%emt 0:01:16]} c5 {[%emt 0:00:47]} 2. Nf3 {[%emt 0:00:03]} e6 {[%emt 0:00:02]} 3. Nc3 {[%emt 0:00:01]} a6 {[%emt 0:00:04]} 4. g3 {[%emt 0:00:02]} Nc6 {[%emt 0:01:00]} 5. Bg2 {[%emt 0:00:09]} Nge7 {[%emt 0:00:22]} 6. d4 {[%emt 0:01:43]} cxd4 {[%emt 0:00:03]} 7. Nxd4 {[%emt 0:00:02]} Nxd4 {[%emt 0:00:08]} 8. Qxd4 {[%emt 0:00:02]} Nc6 {[%emt 0:00:02]} 9. Qd3 {[%emt 0:00:36]} Ne5 {[%emt 0:01:54]} 10. Qe2 {[%emt 0:00:13]} Bc5 {[%emt 0:01:07]} 11. Be3 {[%emt 0:00:40]} Qb6 {[%emt 0:00:24]} 12. Na4 {[%emt 0:01:44]} Qa5+ {[%emt 0:00:17]} 13. Qd2 {[%emt 0:00:01]} Qxd2+ {[%emt 0:01:10]} 14. Bxd2 {[%emt 0:00:07]} Ba7 {[%emt 0:00:37]} 15. Ba5 {[%emt 0:06:37]} Nc4 {[%emt 0:00:45]} 16. Bb4 {[%emt 0:01:16]} b5 {[%emt 0:00:43]} 17. b3 {[%emt 0:00:33]} a5 {[%emt 0:01:08]} 18. bxc4 {[%emt 0:00:39]} axb4 {[%emt 0:00:02]} 19. cxb5 {[%emt 0:00:01]} Bb7 {[%emt 0:02:52]} 20. b6 {[%emt 0:00:30]} Bb8 {[%emt 0:01:13]} 21. Nc5 {[%emt 0:00:05]} Be5 {[%emt 0:00:20]} 22. Rb1 {[%emt 0:00:19]} Bc6 {[%emt 0:00:08]} 23. O-O {[%emt 0:01:15]} Bc3 {[%emt 0:00:51]} 24. b7 {[%emt 0:00:25]} Rb8 {[%emt 0:00:14]} 25. e5 {[%emt 0:00:01]} Bxg2 {[%emt 0:00:24]} 26. Kxg2 {[%emt 0:00:01]} Ke7 {[%emt 0:00:52]} 27. Rfd1 {[%emt 0:00:19]} Rhd8 {[%emt 0:00:02]} 28. f4 {[%emt 0:00:05]} f6 {[%emt 0:00:26]} 29. Ne4 {[%emt 0:00:02]} Rxb7 {[%emt 0:00:42]} 30. Nxc3 {[%emt 0:00:02]} Rc8 {[%emt 0:00:09]} 31. Rd3 {[%emt 0:00:57]} Rbc7 {[%emt 0:00:07]} 32. Ne2 {[%emt 0:00:17]} Rxc2 {[%emt 0:00:02]} 33. Kf3 {[%emt 0:00:01]} fxe5 {[%emt 0:00:07]} 34. fxe5 {[%emt 0:00:02]} Rf8+ {[%emt 0:00:39]} 35. Ke3 {[%emt 0:00:11]} Rf5 {[%emt 0:00:06]} 36. Nd4 {[%emt 0:00:11]} Rxe5+ {[%emt 0:00:01]} 37. Kf4 {[%emt 0:00:10]} Rcc5 {[%emt 0:00:24]} 38. Rxb4 {[%emt 0:00:03]} Re1 {[%emt 0:00:19]} 39. Nf3 {[%emt 0:00:25]} e5+ {[%emt 0:00:30]} 40. Kg4 {[%emt 0:00:02]} h5+ {[%emt 0:00:18]} 41. Kh3 {[%emt 0:00:01]} Rf1 {[%emt 0:00:08]} 42. Rb7 {[%emt 0:00:03]} Ke6 {[%emt 0:00:04]} 43. Rbxd7 {[%emt 0:00:08]} Rxf3 {[%emt 0:00:04]} 44. R7d6+ {[%emt 0:00:33]} Ke7 45. Rd7+ Ke6 {[%emt 0:00:02]} 46. Rxf3 {[%emt 0:00:02]} Kxd7 {[%emt 0:00:01]} 47. Rf7+ {[%emt 0:00:01]} Ke6 {[%emt 0:00:03]} 48. Rxg7 {[%emt 0:00:01]} e4 {[%emt 0:00:14]} 49. Rg6+ {[%emt 0:00:48]} Kf5 {[%emt 0:00:18]} 50. Rh6 {[%emt 0:00:00]} Kg5 {[%emt 0:00:09]} 51. Re6 {[%emt 0:00:04]} Kf5 {[%emt 0:00:03]} 52. Rh6 {[%emt 0:00:08]} Kg5 {[%emt 0:00:02]} 53. Re6 {[%emt 0:00:01]} Kf5 {[%emt 0:00:00]} 54. Re8 {[%emt 0:00:15]} Rc2 {[%emt 0:00:28]} 55. a4 {[%emt 0:00:01]} Ra2 {[%emt 0:00:01]} 56. Ra8 {[%emt 0:00:37]} Ke6 {[%emt 0:01:03]} 57. Re8+ {[%emt 0:00:25]} Kd5 {[%emt 0:00:03]} 58. Rd8+ {[%emt 0:00:13]} Kc4 {[%emt 0:00:04]} 59. Re8 {[%emt 0:00:03]} Kd3 {[%emt 0:00:02]} 60. a5 {[%emt 0:00:12]} Rxa5 {[%emt 0:00:06]} 61. g4 {[%emt 0:00:09]} e3 {[%emt 0:00:20]} 62. Kh4 {[%emt 0:00:09]} hxg4 {[%emt 0:00:21]} 63. Kxg4 {[%emt 0:00:01]} e2 {[%emt 0:00:03]} 64. h4 {[%emt 0:00:09]} Ra8 {[%emt 0:00:20]} 65. Re7 {[%emt 0:00:09]} Rg8+ {[%emt 0:00:12]} 66. Kf5 {[%emt 0:00:14]} Rf8+ {[%emt 0:00:10]} 67. Kg6 {[%emt 0:00:13]} Rg8+ {[%emt 0:00:08]} 68. Kf5 {[%emt 0:00:12]} Rh8 {[%emt 0:00:10]} 69. Kg5 {[%emt 0:00:02]} Rg8+ {[%emt 0:00:10]} 70. Kf5 {[%emt 0:00:01]} Rg1 {[%emt 0:00:16]} 71. h5 {[%emt 0:00:12]} e1=Q {[%emt 0:00:07]} 72. Rxe1 {[%emt 0:00:01]} Rxe1 {[%emt 0:00:01]} 73. h6 {[%emt 0:00:07]} Rh1 {[%emt 0:00:01]} 74. Kg6 {[%emt 0:00:02]} Ke4 {[%emt 0:00:01]} 75. h7 {[%emt 0:00:06]} Rg1+ {[%emt 0:00:04]} 76. Kf7 {[%emt 0:00:02]} Rh1 {[%emt 0:00:05]} 77. Kg7 {[%emt 0:00:01]} Kf5 {[%emt 0:00:01]} 78. h8=Q {[%emt 0:00:04]} Rxh8 {[%emt 0:00:02]} 79. Kxh8 {[%emt 0:00:01]} Ke5 1/2-1/2